[Event "5"]
[Site "Emanuel Lasker Arena"]
[Date "2024.04.09"]
[Round "5"]
[White "LiliBeth"]
[Black "Karpovs Shadow"]
[Result "0-1"]
[WhiteElo "1855"]
[BlackElo "1620"]
[Annotator "NA RC"]
[PlyCount "66"]
[EventDate "2024.04.09"]
[EventType "swiss (blitz)"]
[TimeControl "60"]

1. d4 {[%emt 0:00:01]} d5 {[%emt 0:00:01]} 2. c4 {[%emt 0:00:01]} e6 {[%emt 0:00:01]} 3. Nc3 {[%emt 0:00:01]} Nf6 {[%emt 0:00:01]} 4. cxd5 {[%emt 0:00:01]} exd5 {[%emt 0:00:01]} 5. Bg5 {[%emt 0:00:01]} Be7 {[%emt 0:00:01]} 6. e3 {[%emt 0:00:01]} O-O {[%emt 0:00:01]} 7. Nf3 {[%emt 0:00:01]} Re8 {[%emt 0:00:01]} 8. Bd3 {[%emt 0:00:01]} Nbd7 {[%emt 0:00:04]} 9. O-O {[%emt 0:00:01]} c6 {[%emt 0:00:00]} 10. Bh4 {[%emt 0:00:01]} h6 {[%emt 0:00:01]} 11. Qc2 {[%emt 0:00:01]} Ne4 {[%emt 0:00:01]} 12. Bxe7 {[%emt 0:00:01]} Qxe7 {[%emt 0:00:01]} 13. Bxe4 {[%emt 0:00:03]} dxe4 {[%emt 0:00:01]} 14. Ne5 {[%emt 0:00:03]} Nxe5 {[%emt 0:00:02]} 15. dxe5 {[%emt 0:00:01]} Qxe5 {[%emt 0:00:01]} 16. b4 {[%emt 0:00:03]} Be6 {[%emt 0:00:02]} 17. Nxe4 {[%emt 0:00:02]} Bf5 {[%emt 0:00:06]} 18. h4 {[%emt 0:00:03]} Bxe4 {[%emt 0:00:01]} 19. Qc4 {[%emt 0:00:03]} b5 {[%emt 0:00:04]} 20. f4 {[%emt 0:00:03]} Qb2 {[%emt 0:00:01]} 21. Rf2 {[%emt 0:00:01]} Qxa1+ {[%emt 0:00:01]} 22. Qf1 {[%emt 0:00:02]} Qc3 {[%emt 0:00:00]} 23. a4 {[%emt 0:00:02]} bxa4 {[%emt 0:00:01]} 24. Qd1 {[%emt 0:00:02]} a5 {[%emt 0:00:01]} 25. Qxa4 {[%emt 0:00:01]} axb4 {[%emt 0:00:01]} 26. Qxa8 {[%emt 0:00:01]} Rxa8 {[%emt 0:00:01]} 27. f5 {[%emt 0:00:01]} Qxe3 {[%emt 0:00:01]} 28. h5 {[%emt 0:00:01]} Ra2 {[%emt 0:00:01]} 29. Kh2 {[%emt 0:00:01]} Qxf2 {[%emt 0:00:01]} 30. Kh3 {[%emt 0:00:01]} Bxf5+ {[%emt 0:00:02]} 31. g4 {[%emt 0:00:01]} Qe3+ {[%emt 0:00:02]} 32. Kh4 {[%emt 0:00:01]} Rg2 {[%emt 0:00:02]} 33. gxf5 {[%emt 0:00:01]} Qg3# {[%emt 0:00:01] (Lag: Av=0.08s, max=1.0s)} 0-1

[Event "5"]
[Site "Emanuel Lasker Arena"]
[Date "2024.04.09"]
[Round "5"]
[White "Girlfriend Chess"]
[Black "Endspielexperte"]
[Result "1-0"]
[WhiteElo "1753"]
[BlackElo "1620"]
[Annotator "NA RC"]
[PlyCount "33"]
[EventDate "2024.04.09"]
[EventType "swiss (blitz)"]
[TimeControl "60"]

1. c4 {[%emt 0:00:01]} c5 {[%emt 0:00:01]} 2. Nf3 {[%emt 0:00:01]} Nf6 {[%emt 0:00:01]} 3. g3 {[%emt 0:00:02]} d5 {[%emt 0:00:01]} 4. Bg2 {[%emt 0:00:01]} Nc6 {[%emt 0:00:01]} 5. O-O {[%emt 0:00:01]} d4 {[%emt 0:00:01]} 6. d3 {[%emt 0:00:01]} e5 {[%emt 0:00:01]} 7. e3 {[%emt 0:00:01]} Be7 {[%emt 0:00:01]} 8. e4 {[%emt 0:00:01]} O-O {[%emt 0:00:01]} 9. a4 {[%emt 0:00:01]} Qb6 {[%emt 0:00:01]} 10. a5 {[%emt 0:00:02]} Nxe4 {[%emt 0:00:01]} 11. axb6 {[%emt 0:00:01]} Nd6 {[%emt 0:00:04]} 12. Ng5 {[%emt 0:00:04]} a5 {[%emt 0:00:04]} 13. b4 {[%emt 0:00:04]} Nxb4 {[%emt 0:00:01]} 14. Qh5 {[%emt 0:00:08]} Bxg5 {[%emt 0:00:03]} 15. Bxg5 {[%emt 0:00:01]} f6 {[%emt 0:00:03]} 16. Be3 {[%emt 0:00:03]} dxe3 {[%emt 0:00:01]} 17. fxe3 {[%emt 0:00:01] Endspielexperte resigns (Lag: Av=0.08s, max=0.6s)} 1-0